Cogmind - Beta 9.1 @@@ ROGUE MODE // 2019.10.30 @ 13:16:43 Player: Ashbrazier Result: Destroyed self via exploding Nuclear Reactor Performance ------------- Evolutions (0) 0 Regions Visited (1) 200 Robots Destroyed (7) 35 Value Destroyed (204) 204 Prototype IDs (0) 0 Alien Tech Used (0) 0 Bonus (0) 0 TOTAL SCORE: 439 Bonus ------- None Cogmind --------- Core Integrity 0/250 Matter 160/300 Energy 100/100 System Corruption 0% Temperature Cool (0) Location -10/Materials Parts ------- Power (1) Propulsion (2) Compact Wheel Compact Wheel Utility (2) Small Storage Unit Weapon (2) Grenade Launcher Inventory (6) Compact Wheel Compact Wheel Flight Unit Flight Unit Flight Unit Peak State ------------ Power Light Ion Engine Propulsion Wheel Compact Wheel Utility Small Storage Unit Weapon EM Pulse Gun Small Laser Inventory (Empty) [Rating: 6] Favorites ----------- Power Light Ion Engine Engine Light Ion Engine Propulsion Compact Wheel Wheel Compact Wheel Utility Small Storage Unit Storage Small Storage Unit Weapon Light Assault Rifle Energy Gun Small Laser Ballistic Gun Light Assault Rifle Launcher Grenade Launcher Build | -11 -10 ------- Run | Scr Mat Slots Evolved . | . . Power . | . . Propulsion . | . . Utility . | . . Weapon . | . . Parts Attached 13 | 6 7 Power 3 | 1 2 Engine 3 | 1 2 Core . | . . Reactor . | . . Propulsion 4 | 2 2 Treads . | . . Leg . | . . Wheel 4 | 2 2 Hover . | . . Flight . | . . Utility 2 | 1 1 Device . | . . Storage 2 | 1 1 Processor . | . . Hackware . | . . Protection . | . . Artifact . | . . Weapon 4 | 2 2 Energy Gun 2 | 2 . Energy Cannon . | . . Ballistic Gun 1 | . 1 Ballistic Cannon . | . . Launcher 1 | . 1 Special Weapon . | . . Impact Weapon . | . . Slashing Weapon . | . . Piercing Weapon . | . . Special Melee Weapon . | . . Unidentified Prototypes . | . . Parts Lost 4 | . 4 Power 2 | . 2 Propulsion . | . . Utility . | . . Weapon 2 | . 2 Highest Loss Streak 3 | . 3 Average Slot Usage (%) 78 | . 78 Engine 12 | . 12 Wheel 28 | . 28 Storage 14 | . 14 Energy Gun 10 | . 10 Ballistic Gun 12 | . 12 Launcher 1 | . 1 Naked Turns . | . . Heaviest Build 10 | 10 10 Greatest Support 32 | 26 32 Greatest Overweight (x) . | . . Average Overweight (x) . | . . Largest Inventory Capacity 6 | 6 6 Average Capacity 5 | 5 5 Most Carried 6 | 3 6 Average Carried 4 | 1 5 Final Capacity 6 | 6 6 Final Carried 5 | 3 5 Class Distribution -------------------- 100% | Mutant Dominant Class ---------------- Mutant | -10/Materials Resources | -11 -10 ----------- Run | Scr Mat Matter Collected 224 | 198 26 Remotely . | . . Salvage Created 160 | . 160 Parts 16 | . 16 Haulers Intercepted . | . . Recyclers Shooed . | . . Parts Field Recycled . | . . Retrieved Matter . | . . Parts Self-Destructed . | . . Prevented . | . . Kills | -11 -10 ------- Run | Scr Mat Combat Hostiles Destroyed 6 | . 6 Guns 4 | . 4 AOE 2 | . 2 Classes Destroyed 3 | . 3 Watcher 1 | . 1 Swarmer 3 | . 3 Grunt 3 | . 3 Best Kill Streak 4 | . 4 Combat Bots Only 3 | . 3 Max Kills in Single Turn 2 | . 2 Gunslinging . | . . Exploded 2 | . 2 Melee . | . . Uniques/NPCs Destroyed . | . . Combat | -11 -10 -------- Run | Scr Mat Damage Taken 585 | . 585 Core 259 | . 259 Absorbed by Shields . | . . Core Remaining (%) 100 | 100 . Volleys Fired 32 | . 32 Largest 2 | . 2 Hottest 60 | . 60 Shots Fired 44 | . 44 Gun 41 | . 41 Cannon . | . . Launcher 3 | . 3 Special . | . . Kinetic 29 | . 29 Thermal 12 | . 12 Explosive 3 | . 3 Electromagnetic . | . . Robot Hit Streak 10 | . 10 Robot Miss Streak 3 | . 3 Penetration Max . | . . Secondary Targets 1 | . 1 Max Gunslinging Chain 1 | . 1 Shots Hit Robots 31 | . 31 Core Hits 13 | . 13 Critical Hits . | . . Critical Kills . | . . Critical Parts Destroyed . | . . Melee Attacks . | . . Impact . | . . Slashing . | . . Piercing . | . . Sneak Attacks . | . . Combat Hostiles . | . . Follow-up Attacks . | . . Damage Inflicted 419 | . 419 Guns 253 | . 253 Cannons . | . . Explosions 154 | . 154 Melee . | . . Ramming 12 | . 12 Kinetic 164 | . 164 Thermal 89 | . 89 Explosive 154 | . 154 Electromagnetic . | . . Impact . | . . Slashing . | . . Piercing . | . . Highest Corruption . | . . Average Corruption . | . . Corruption Purged . | . . Overload Shots . | . . Overflow Damage 13 | . 13 Projectiles . | . . Explosions 13 | . 13 Melee . | . . Knockbacks . | . . Impact . | . . Kinetic . | . . Secondary . | . . Self-Inflicted Damage 166 | . 166 Shots 3 | . 3 Rammed 1 | . 1 Targets Rammed 1 | . 1 Kicked . | . . Crushed . | . . Highest Temperature 85 | . 85 Average Temperature 33 | . 33 Received Heat Transfer 198 | . 198 Siege Activations . | . . Robots Corrupted . | . . Combat Hostiles . | . . Parts Fried . | . . Impact Corruptions . | . . Robots Melted . | . . Combat Hostiles . | . . Parts Melted . | . . Heat Transferred 200 | . 200 Parts Sabotaged . | . . Parts Stolen . | . . Parts Stripped . | . . Power Chain Reactions . | . . Missiles Intercepted . | . . Alert | -11 -10 ------- Run | Scr Mat Peak Influence 217 | . 217 Average Influence 68 | . 82 Maximum Alert Level 1 | . 1 Low Security (%) 96 | . . Level 1 3 | . . Level 2 . | . . Level 3 . | . . Level 4 . | . . Level 5 . | . . High Security . | . . Max Security . | . . Squads Dispatched . | . . Investigation . | . . Extermination . | . . Reinforcement . | . . Assault . | . . Garrison . | . . Intercept . | . . Construction Impeded . | . . Haulers Reinforced . | . . Stealth | -11 -10 --------- Run | Scr Mat Distress Signals 1 | . 1 Communications Jammed . | . . Distress Signals . | . . Times Spotted 11 | . 11 Peak Tracking Total 5 | . 5 Tactical Retreats 2 | . 2 Traps | -11 -10 ------- Run | Scr Mat Traps Triggered . | . . Indirectly . | . . Trap Hack Attempts . | . . Triggered . | . . Disarmed . | . . Reprogrammed . | . . Reused . | . . Traps Extracted . | . . Installed . | . . Triggered . | . . Machines | -11 -10 ---------- Run | Scr Mat Machines Disabled 3 | . 3 Max in Single Turn 2 | . 2 Machines Sabotaged . | . . Garrisons Compromised . | . . Overloaded Fab Kills . | . . Fab Network Shutdowns . | . . Hacking | -11 -10 --------- Run | Scr Mat Machines Accessed . | . . Terminals . | . . Fabricators . | . . Repair Stations . | . . Recycling Units . | . . Scanalyzers . | . . Garrison Access . | . . Total Hacks . | . . Successful . | . . Failed . | . . Catastrophic . | . . Database Lockouts . | . . Manual . | . . Terminals . | . . Fabricators . | . . Repair Stations . | . . Recycling Units . | . . Scanalyzers . | . . Garrison Access . | . . Terminal Hacks . | . . Fabricator Hacks . | . . Repair Station Hacks . | . . Recycling Unit Hacks . | . . Scanalyzer . | . . Garrison Access Hacks . | . . Unauthorized Hacks . | . . Terminals . | . . Fabricators . | . . Repair Stations . | . . Recycling Units . | . . Scanalyzers . | . . Garrison Access . | . . Data Cores Recovered . | . . Used . | . . Hacking Detections . | . . Full Trace Events . | . . Feedback Events . | . . Feedback Blocked . | . . Robot Schematics Acquired . | . . Robots Built . | . . Matter . | . . Time . | . . Total Robot Build Rating . | . . Part Schematics Acquired . | . . Parts Built . | . . Matter . | . . Time . | . . Total Part Build Rating . | . . Parts Repaired . | . . Time . | . . Parts Recycled . | . . Recycled Matter . | . . Retrieved Matter . | . . Retrieved Components . | . . Parts Scanalyzed . | . . Part Schematics Acquired . | . . Parts Damaged . | . . Bothacking | -11 -10 ------------ Run | Scr Mat Used RIF Installer . | . . Robots Hacked . | . . Non-combat . | . . Combat . | . . Robot Hacks Applied . | . . Relay Couplers Released . | . . Robots Rewired . | . . Allies Hacked . | . . Hacks Repelled . | . . Allies | -11 -10 -------- Run | Scr Mat Total Allies . | . . Largest Group . | . . Highest-Rated Group . | . . Highest-Rated Ally . | . . Total Orders . | . . Ally Attacks . | . . Total Damage . | . . Kills . | . . Allies Corrupted . | . . Allies Melted . | . . Intel | -11 -10 ------- Run | Scr Mat Robot Analysis Total . | . . Derelict Logs Recovered . | . . Drone Launches . | . . Drone Recoveries . | . . Exploration | -11 -10 ------------- Run | Scr Mat Turns Passed 329 | 53 276 Spaces Moved 226 | 45 181 Core 3 | 3 . Treads . | . . Legs . | . . Wheels 223 | 42 181 Hover . | . . Flight . | . . Fastest Speed 50 | 50 90 Average Speed 96 | 86 99 Slowest Speed 100 | 90 100 Overloaded Moves . | . . Propulsion Burnouts . | . . Robots Hopped . | . . Cave-ins Triggered . | . . Exploration Rate (%) 17 | 3 32 Regions Visited 1 Branch Regions . Pre-discovered Areas . | . . Known Exits Taken . | . . Unknown Exits Taken 1 | 1 . Scrap Searched . | . . Spaces Dug . | . . Terrain Destroyed 41 | . 41 Melee . | . . Projectile . | . . AOE 41 | . 41 Actions | -11 -10 --------- Run | Scr Mat Total 295 | 56 239 Wait 6 | 3 3 Move 225 | 44 181 Hop . | . . Pick Up 11 | 3 8 Fast Attach 9 | 6 3 Attach 1 | . 1 Detach . | . . Swap 3 | . 3 Drop 7 | . 7 Fire 32 | . 32 Melee . | . . Ram 1 | . 1 Kick . | . . Crush . | . . Escape Stasis . | . . Rewire . | . . Trap . | . . Miscellaneous . | . . Route ------- -11/Scrapyard -10/Materials History --------- Turn | Location | Event 12 | -11/Scrapyard | Discovered new exit (range 16) 54 | -11/Scrapyard | Entered Materials 270 | -10/Materials | Core integrity fell below 50% 309 | -10/Materials | Build established: Mutant 321 | -10/Materials | Core integrity fell below 20% 330 | -10/Materials | Destroyed self via exploding Nuclear Reactor Last Messages --------------- 00229_ U-05 Engineer lays Concrete. 00236_ Electrolysis Chamber disabled. 00248_ Sml. Laser destroyed. 00259_ G-47 Trooper destroyed. 00282_ Slammed into G-34 Mercenary. 00288_ Lgt. Ion Engine destroyed. 00312_ Acquired Grenade Launcher. 00314_ Lgt. Assault Rifle destroyed. 00314_ Destroyed Lgt. Assault Rifle. 00318_ G-34 Mercenary destroyed. 00318_ G-47 Trooper destroyed. 00320_ Nuclear Reactor explodes. 00320_ Recycling Unit disabled. 00320_ Flight Unit tumbles out of recycling unit. 00320_ Aluminum Leg tumbles out of recycling unit. 00321_ The unstable cave ceiling collapses. 00330_ Nuclear Reactor explodes. 00330_ Lgt. Ion Engine destroyed. 00330_ Destroyed Lgt. Ion Engine. [Achievement: First Step to Greatness] Map ----- +----------------------------------------------------+ | ????#"" # ?????? | | ????# # ###+########+#########????????????? | | ????# # # ## #?????????????????? | | ????##/##### # ## #?????????????????? | | ?????# #???# # ## #?????????????????? | | ?????# #???# # ## #?????????????????? | | ?????# #???# # ## #?????????????????? | | ?????# #???# # ## #?????????????????? | | ?????# ##### # ## #?????????????????? | | ?????# # ## #?????????????????? | | ?########+## ############ #?????????????????? | | ?# # #! #???######?????????????????? | | ?# # # """ #??????????????????????????? | | ?# # + """ #??????????????????????????? | | ?# + # """ #??????????????????????????? | | ?# """ """ # # #??????????????????????????? | | ?# """ """ ### # #??????????????????????????? | | ?# """ """ #?# ### # ####????????????????????????? | | ?# #?# = #????????????????????????? | | ??##########?# #### %! ####?????????????????????? | | ?????????????# ### #?????????????????????? | | ????????????? ## ##????????????????????? | | ?????????????# # # #????????????????????? | | ?????????????? ?# #####????????????????? | | ?????????????? ?# #????????????????? | | ?????????????? ?# @ #????????????????? | | ?????????????? ?# T +????????????????? | | ?????????????? ?## = #????????????????? | | ?????????????? ??# #????????????????? | | ?????????????????# " ## ##????????????????? | | ?????????????????# #? #?????????????????? | | ?????????????????#######+ #?? #?????????????????? | | ????????????????????????????? #?????????????????? | | ?????????????????????????????? #?????????????????? | | ???????????????????????????????#?????????????????? | | ?????????????????????????????????????????????????? | | ?????????????????????????????????????????????????? | | ?????????????????????????????????????????????????? | | ?????????????????????????????????????????????????? | | ?????????????????????????????????????????????????? | | ?????????????????????????????????????????????????? | | ?????????????????????????????????????????????????? | | ?????????????????????????????????????????????????? | | ?????????????????????????????????????????????????? | | ?????????????????????????????????????????????????? | | ?????????????????????????????????????????????????? | | ?????????????????????????????????????????????????? | | ?????????????????????????????????????????????????? | | | | | +----------------------------------------------------+ Best States ------------- Heat Dissipation 25 Energy Generation 10 Energy Capacity 125 Matter Stores 238 Matter Capacity 300 Sight Range 16 Terrain Scan Density 10 Evasion (%) 42 Item Schematics ----------------- None Robot Schematics ------------------ None Fabricated ------------ Nothing Alien Tech Used ----------------- None Achievements -------------- First Step to Greatness Challenges ------------ None Game ------ Seed InsulationChargeShifter Manual? 0 Play Time 00:10:51 Cumulative 4.6 hours Start 2019.10.30 @ 13:09:58 End 2019.10.30 @ 13:16:43 Sessions 1 Manual Loads 0 Difficulty Rogue Special Mode None Game No. 10 Rogue 10 Adventurer 0 Explorer 0 Win Type - Total 0 Types 0/0/0/0/0/0/0 Lore% 2 Gallery% 10 Achievement% 4 Wizard Run 0 Options --------- ASCII 0 Keyboard 0 Movement Numpad Keybinds 0 Fullscreen 1 Font 32/Smallcaps Map View 76x50 Tactical HUD 1 Map Filters NONE Filters NONE Steam 1 RUN: 240cd968-34b3-4997-94d6-c2b386c2b4e3